[Event "CCT Julius Baer-D3 2024"]
[Site "Online"]
[Date "2024.09.27"]
[Round "2.4"]
[White "Sindarov, Javokhir"]
[Black "Kamsky, Gata"]
[Result "1-0"]
[ECO "B22"]
[WhiteElo "2677"]
[BlackElo "2609"]
[Annotator "TA"]
[PlyCount "57"]
[EventDate "2024.09.25"]
[EventType "swiss"]
[EventCountry "NET"]
[SourceTitle "playchess.com"]
[Source "ChessBase"]
[SourceQuality "1"]
[TimeControl "600+2"]

{[%evp 12,56,17,9,26,20,22,16,29,13,14,14,27,17,28,29,17,20,22,0,18,6,12,19,39,34,31,31,39,36,37,0,39,0,0,0,86,99,107,108,97,97,159,158,407,377,29999]} 1. e4 {[%emt 0:00:02]} c5 {[%emt 0:00:03]} 2. Nf3 {[%emt 0:00:14]} e6 {[%emt 0:00:01]} 3. c3 {[%emt 0:00:23]} Nf6 {[%emt 0:00:20]} 4. e5 {[%emt 0:00:01]} Nd5 {[%emt 0:00:02]} 5. a3 {[%emt 0:00:07]} b6 {[%emt 0:00:06]} 6. d4 {[%emt 0:00:01]} cxd4 {[%emt 0:00:02]} 7. cxd4 {[%emt 0:00:01]} Ba6 {[%emt 0:00:06]} 8. Bxa6 {[%emt 0:01:18]} Nxa6 {[%emt 0:00:03]} 9. Bg5 {[%emt 0:00:01]} Be7 {[%emt 0:00:15] The position is equal.} 10. Bxe7 {[%emt 0:00:02]} Qxe7 {[%emt 0:00:01]} 11. O-O {[%emt 0:00:27]} O-O {[%emt 0:00:03]} 12. Nbd2 {[%emt 0:00:08][%cal Bb1d2,Bd2c4,Bc4d6,Bd6e4][%mdl 32]} f5 {[%emt 0:00:30]} 13. Rc1 {[%emt 0:01:02]} Nac7 {[%emt 0:00:11]} 14. Nc4 {[%emt 0:00:22]} g5 {[%emt 0:00:22][%cal Bg7g5,Bg5g4][%mdl 32]} 15. Qd2 {[%emt 0:00:27]} g4 {[%emt 0:00:07]} 16. Ne1 {[%emt 0:00:01][%cal Bf3e1,Be1d3,Bd3e5,Be5d7][%mdl 32]} f4 {[%emt 0:00:21]} 17. Nd6 {[%emt 0:00:22]} Ne8 {[%emt 0:00:03]} (17... Qh4 {is interesting.} 18. g3 Qh5 19. Nd3 Qh3) 18. Ne4 {[%emt 0:00:01]} Qg7 {[%emt 0:00:31]} 19. Nd3 {[%emt 0:00:07]} Qg6 {[%emt 0:00:04]} 20. Rfe1 {[%emt 0:00:11]} a5 {[%emt 0:00:13]} 21. Kh1 {[%emt 0:00:39]} Ng7 {[%emt 0:00:25] [#]} 22. Nf6+ $1 {[%emt 0:00:51]} Nxf6 {[%emt 0:00:06]} 23. exf6 {[%emt 0:00:01]} Rxf6 {[%emt 0:00:09]} (23... Qxf6 $11 24. Re4 (24. Ne5 Qh4 $16) 24... Qg5) 24. Ne5 $1 $16 {[%emt 0:00:10]} (24. Nxf4 Qh6 25. g3 Nh5 $16) 24... Qg5 {[%emt 0:02:56]} 25. Nxd7 {[%emt 0:00:02]} Rh6 {[%emt 0:00:02]} 26. Re4 {[%emt 0:00:09] White is much more active.} (26. Nxb6 Rf8 27. Rc3 (27. Nd7 $2 Qh5 $19) 27... Qh5 $14) 26... Rd8 {[%emt 0:00:46]} (26... Nh5 $142) 27. Qxf4 {[%emt 0:00:09]} (27. Nxb6 $2 e5 28. Qc2 (28. Rxe5 $2 Qxe5 29. h3 Rxb6 $19) (28. Qxa5 $2 Qh5 $19) 28... Qh4 $19 (28... Rxb6 $2 29. Rxe5 Qh4 30. g3 $19) (28... exd4 $2 29. Qc4+ Kh8 30. Rxd4 $19)) 27... Qh4 {[%emt 0:00:27] [#]} (27... Qxf4 $16 28. Rxf4 Rxd7) 28. Rc7 {[%emt 0:00:50]} (28. Qxg4 $2 Qxh2#) ({Weaker is} 28. Nxb6 e5 29. Qxe5 Re6 $11 (29... Rxb6 30. Qxa5 Qf6 31. Rxg4 $14)) 28... Ne8 $2 {[%emt 0:02:32]} (28... e5 $18 29. Nxe5 (29. dxe5 Kh8 $18) (29. Rxe5 Ne6 $15) 29... Rf8) 29. Qf8# {[%emt 0:00:03] Weighted Error Value: White=0.08 (flawless) /Black=0.49.  Loses game:     	---       	Black=1      Mistake:       	---       	Black=3      Inaccurate:     	White=2     	Black=1      OK:         	White=10    	Black=8      Best:        	White=2     	Black=1      Strong:       	White=1     	---} 1-0

[Event "CCT Julius Baer-D3 2024"]
[Site "Online"]
[Date "2024.09.27"]
[Round "2.4"]
[White "Korobov, Anton"]
[Black "Gelfand, Boris"]
[Result "1/2-1/2"]
[ECO "B22"]
[WhiteElo "2650"]
[BlackElo "2658"]
[Annotator "TA"]
[PlyCount "116"]
[EventDate "2024.09.25"]
[EventType "swiss"]
[EventCountry "NET"]
[SourceTitle "playchess.com"]
[Source "ChessBase"]
[SourceQuality "1"]
[TimeControl "600+2"]

{[%evp 16,116,18,20,19,26,25,8,18,10,8,0,0,0,4,0,6,-58,0,0,0,0,0,-14,-15,-4,0,0,0,-18,0,0,0,0,0,0,0,0,11,24,19,14,39,23,20,22,17,15,45,23,64,3,10,16,15,10,13,0,0,0,0,-8,0,0,0,0,29,6,10,5,18,0,0,0,0,0,0,0,0,0,0,0,0,0,0,0,0,0,0,0,0,0,0,0,0,0,0,0,0,0,0,0,0]} 1. e4 {[%emt 0:00:03][%cal Be2e4,Be4e5][%mdl 32]} c5 {[%emt 0:00:04]} 2. c3 {[%emt 0:00:01]} Nf6 {[%emt 0:00:02]} 3. e5 {[%emt 0:00:01]} Nd5 {[%emt 0:00:01]} 4. Bc4 {[%emt 0:00:00]} Nb6 {[%emt 0:00:03]} 5. Bb3 {[%emt 0:00:01]} c4 {[%emt 0:00:10]} 6. Bc2 {[%emt 0:00:01]} d6 {[%emt 0:00:01]} 7. exd6 {[%emt 0:00:06]} Qxd6 {[%emt 0:00:07]} 8. Nf3 {[%emt 0:00:01]} Nc6 {[%emt 0:00:15]} 9. O-O {[%emt 0:00:01][%cal Bh1f1,Bf1e1,Be1e5][%mdl 32]} Bg4 {[%emt 0:00:02]} 10. Re1 {[%emt 0:00:06] Inhibits Ne5.} Ne5 {[%emt 0:00:09]} 11. Rxe5 {[%emt 0:00:47]} Bxf3 {[%emt 0:00:01]} 12. Qe1 {[%emt 0:00:01]} Bc6 {[%emt 0:00:01]} 13. b3 {[%emt 0:00:01]} g6 {[%emt 0:00:16]} 14. Ba3 {[%emt 0:00:06]} Qc7 {[%emt 0:00:30]} 15. Bc5 {[%emt 0:00:23]} e6 {[%emt 0:00:39]} 16. Na3 {[%emt 0:00:59]} (16. Bxf8 $11 Kxf8 17. Na3) 16... Bxc5 {[%emt 0:00:46]} (16... Nd7 $15 17. Bxf8 Nxe5 (17... Qxe5 $2 {loses.} 18. Qxe5 Nxe5 19. Bg7 $18)) 17. Rxc5 $11 {[%emt 0:00:00]} cxb3 {[%emt 0:01:30]} 18. axb3 {[%emt 0:00:00]} O-O {[%emt 0:00:02]} 19. Be4 {[%emt 0:00:54]} Nd7 {[%emt 0:00:28]} 20. Rc4 {[%emt 0:00:11]} Ne5 {[%emt 0:00:06]} 21. Rc5 {[%emt 0:00:13]} Nd7 {[%emt 0:00:24][%cal Be5d7,Bd7f6,Bf6h5,Bh5g7,Bg7f5,Bf5d6][%mdl 32]} 22. Rg5 {[%emt 0:00:15]} Rad8 {[%emt 0:00:46]} 23. Bxc6 {[%emt 0:00:22]} Qxc6 {[%emt 0:00:02]} 24. Nc4 {[%emt 0:00:09]} a6 {[%emt 0:00:02]} 25. d4 {[%emt 0:00:15]} Qc7 {[%emt 0:00:10]} 26. h4 {[%emt 0:00:11]} Nf6 {[%emt 0:00:02]} 27. Ne5 {[%emt 0:00:17]} Rd5 {[%emt 0:00:20]} 28. Rg3 {[%emt 0:00:08]} Nh5 {[%emt 0:00:11]} 29. Rf3 {[%emt 0:00:04]} Qe7 {[%emt 0:00:14]} 30. g3 {[%emt 0:00:11]} Ng7 {[%emt 0:00:12]} 31. Rd1 {[%emt 0:00:12]} Nf5 {[%emt 0:00:04]} 32. Qe4 {[%emt 0:00:30][%cal Oh4h5]} Rfd8 {[%emt 0:00:10]} 33. Kg2 {[%emt 0:00:21]} (33. h5 $1 $14) 33... h5 $1 {[%emt 0:00:09]} 34. Rfd3 {[%emt 0:00:11]} Nd6 {[%emt 0:00:18]} 35. Qf4 {[%emt 0:00:18] Hoping for c4.} Nf5 {[%emt 0:00:01]} 36. Qg5 {[%emt 0:00:10]} Kg7 {[%emt 0:00:14]} 37. Qxe7 {[%emt 0:00:38]} Nxe7 {[%emt 0:00:01]} 38. Kf3 {[%emt 0:00:18]} Nc6 {[%emt 0:00:17]} 39. Nxc6 {[%emt 0:00:08]} bxc6 {[%emt 0:00:01][%mdl 4096] Endgame. KRR-KRR} 40. Ra1 {[%emt 0:00:02]} a5 {[%emt 0:00:15]} 41. Re3 {[%emt 0:00:07]} Kf6 {[%emt 0:00:25] The position is equal.} 42. Ke2 {[%emt 0:00:17]} Ke7 {[%emt 0:00:15]} 43. f4 {[%emt 0:00:22]} Rb5 {[%emt 0:00:10]} 44. Ra3 {[%emt 0:00:42]} Rdb8 {[%emt 0:00:03]} 45. c4 {[%emt 0:00:01]} Rb4 {[%emt 0:00:01]} 46. Rc3 {[%emt 0:00:29]} Kf6 {[%emt 0:00:09]} 47. Kd3 {[%emt 0:00:02]} Ra8 {[%emt 0:00:06]} 48. Ke4 {[%emt 0:00:03]} Rab8 {[%emt 0:00:04]} 49. Kd3 {[%emt 0:00:08]} Ra8 {[%emt 0:00:01]} 50. Ke4 {[%emt 0:00:01]} a4 {[%emt 0:00:05]} 51. bxa4 {[%emt 0:00:10]} Raxa4 {[%emt 0:00:02]} 52. Rxa4 {[%emt 0:00:01]} Rxa4 {[%emt 0:00:01] KR-KR} 53. c5 {[%emt 0:00:01]} Ra1 {[%emt 0:00:09]} 54. Rb3 {[%emt 0:00:14] Rb6 would now be deadly.} Re1+ {[%emt 0:00:01]} 55. Kf3 {[%emt 0:00:06]} Rd1 {[%emt 0:00:05]} 56. Ke4 {[%emt 0:00:02]} Re1+ {[%emt 0:00:02]} 57. Kf3 {[%emt 0:00:00]} Rd1 {[%emt 0:00:08]} 58. Ke4 {[%emt 0:00:02] Strongly threatening Rb6.} Re1+ {[%emt 0:00:02] Weighted Error Value: White=0.08 (flawless) /Black=0.06 (flawless) .  Mistake:       	White=2     	Black=1      Inaccurate:     	---       	Black=3      OK:         	White=25    	Black=20     Best:        	---       	Black=3      Strong:       	---       	Black=1} 1/2-1/2

[Event "CCT Julius Baer-D3 2024"]
[Site "Online"]
[Date "2024.09.27"]
[Round "2.4"]
[White "Yoo, Christopher Woojin"]
[Black "Niemann, Hans Moke"]
[Result "1/2-1/2"]
[ECO "C67"]
[WhiteElo "2603"]
[BlackElo "2733"]
[Annotator "TA"]
[PlyCount "54"]
[EventDate "2024.09.25"]
[EventType "swiss"]
[EventCountry "NET"]
[SourceTitle "playchess.com"]
[Source "ChessBase"]
[SourceQuality "1"]
[TimeControl "600+2"]

{[%evp 18,54,14,21,25,-8,-3,-8,-7,-6,-11,-10,-11,-16,0,0,0,0,-21,-6,-9,-5,0,0,0,0,0,0,0,0,0,0,0,0,0,0,0,0,0]} 1. e4 {[%emt 0:00:05]} e5 {[%emt 0:00:03]} 2. Nf3 {[%emt 0:00:02]} Nc6 {[%emt 0:00:01]} 3. Bb5 {[%emt 0:00:05]} Nf6 {[%emt 0:00:00]} 4. O-O {[%emt 0:00:03][%cal Bh1f1,Bf1e1,Be1e5][%mdl 32]} Nxe4 {[%emt 0:00:01]} 5. Re1 {[%emt 0:00:26]} Nd6 {[%emt 0:00:03]} 6. Nxe5 {[%emt 0:00:01]} Be7 {[%emt 0:00:01][%cal Bf8e7,Be7f6,Bf6d4][%mdl 32]} 7. Bf1 {[%emt 0:00:01]} Nxe5 {[%emt 0:00:00]} 8. Rxe5 {[%emt 0:00:01]} O-O {[%emt 0:00:01]} 9. d4 {[%emt 0:00:15]} Bf6 {[%emt 0:00:01]} 10. Re1 {[%emt 0:00:01]} Re8 {[%emt 0:00:01]} 11. Nc3 {[%emt 0:00:05]} Rxe1 {[%emt 0:00:03] The position is equal.} 12. Qxe1 {[%emt 0:00:01]} Bxd4 {[%emt 0:00:00]} 13. Bf4 {[%emt 0:00:07]} Ne8 $1 {[%emt 0:00:02]} 14. Nd5 {[%emt 0:00:06]} d6 {[%emt 0:00:04][%cal Oe8f6]} 15. Bg5 {[%emt 0:00:53]} f6 {[%emt 0:00:04]} 16. Bh4 {[%emt 0:00:22] [#] Threatens to win with Qe4.} g5 {[%emt 0:00:08]} 17. Qe4 {[%emt 0:00:08]} Bxb2 {[%emt 0:00:09]} 18. Re1 {[%emt 0:00:02]} Be5 {[%emt 0:00:01][%cal Oc8e6] Strongly threatening ...Be6!} 19. f4 $132 {[%emt 0:00:03][%mdl 2048] White has counterplay} gxh4 {[%emt 0:00:02]} 20. fxe5 {[%emt 0:00:02]} dxe5 {[%emt 0:00:01] ...Be6 is the strong threat.} 21. Bd3 $1 {[%emt 0:00:00]} Bf5 {[%emt 0:00:01]} 22. Qxf5 {[%emt 0:00:01]} Qxd5 {[%emt 0:00:01]} 23. Qxh7+ {[%emt 0:00:01]} Kf8 {[%emt 0:00:01]} 24. Qh6+ {[%emt 0:00:00]} Ke7 {[%emt 0:00:04]} 25. Qh7+ {[%emt 0:00:02]} Kf8 {[%emt 0:00:03]} 26. Qh6+ {[%emt 0:00:02]} Ke7 {[%emt 0:00:01]} 27. Qh7+ {[%emt 0:00:00]} Kf8 {[%emt 0:00:00] An uneventful encounter.   Weighted Error Value: White=0.01 (flawless) /Black=0.00 (flawless) .  Inaccurate:     	White=1     	---        OK:         	White=11    	Black=9      Best:        	White=1     	Black=2      Strong:       	White=1     	Black=1} 1/2-1/2

[Event "CCT Julius Baer-D3 2024"]
[Site "Online"]
[Date "2024.09.27"]
[Round "2.4"]
[White "Moussard, Jules"]
[Black "Svane, Rasmus"]
[Result "1-0"]
[ECO "B11"]
[WhiteElo "2600"]
[BlackElo "2629"]
[Annotator "TA"]
[PlyCount "73"]
[EventDate "2024.09.25"]
[EventType "swiss"]
[EventCountry "NET"]
[SourceTitle "playchess.com"]
[Source "ChessBase"]
[SourceQuality "1"]
[TimeControl "600+2"]

{[%evp 10,72,16,11,16,20,31,20,27,20,33,20,19,23,26,24,30,19,29,14,29,20,63,73,82,55,56,35,143,148,124,106,111,133,141,118,127,100,109,43,53,26,99,0,141,154,288,271,450,431,381,158,693,666,688,676,632,495,29991,29992,29997,-1370,29998,29999,29999]} 1. e4 {[%emt 0:00:02]} c6 {[%emt 0:00:09]} 2. Nf3 {[%emt 0:00:02]} d5 {[%emt 0:00:01]} 3. Nc3 {[%emt 0:00:00]} Bg4 {[%emt 0:00:03]} 4. h3 {[%emt 0:00:03]} Bxf3 {[%emt 0:00:02]} 5. Qxf3 {[%emt 0:00:01]} e6 {[%emt 0:00:02]} 6. Be2 {[%emt 0:00:21]} d4 {[%emt 0:00:05]} 7. Nb1 {[%emt 0:00:02]} Ne7 {[%emt 0:00:01]} 8. d3 {[%emt 0:00:06]} Ng6 {[%emt 0:00:07] The position is equal.} 9. g3 {[%emt 0:00:07]} a5 {[%emt 0:00:00]} 10. O-O {[%emt 0:00:22]} h5 {[%emt 0:00:05]} 11. h4 {[%emt 0:00:03]} Nd7 {[%emt 0:00:02]} 12. Qg2 {[%emt 0:00:02]} e5 {[%emt 0:00:25]} 13. a4 {[%emt 0:00:06]} Be7 {[%emt 0:00:10]} 14. Bd1 {[%emt 0:00:50]} Nc5 {[%emt 0:01:44]} 15. Nd2 {[%emt 0:00:08]} Qd7 {[%emt 0:00:07]} 16. Nc4 {[%emt 0:00:27]} Bd8 {[%emt 0:00:27] Inhibits Nb6.} 17. Bd2 {[%emt 0:00:14]} Bc7 {[%emt 0:00:21]} 18. Kh2 {[%emt 0:00:17]} f5 {[%emt 0:00:53]} (18... Ne6 $14) 19. exf5 {[%emt 0:00:01]} Qxf5 {[%emt 0:00:02]} 20. b4 {[%emt 0:00:02]} axb4 {[%emt 0:00:08]} 21. Bxb4 {[%emt 0:00:00]} Nd7 {[%emt 0:01:26]} 22. Bf3 {[%emt 0:01:31]} Qe6 {[%emt 0:01:19][%cal Og6h4]} (22... Nxh4 $2 23. Be4 $18 (23. gxh4 c5 $18)) 23. Be4 {[%emt 0:00:17] White is more active. A strong pair of Bishops.} Ne7 {[%emt 0:00:03]} 24. Bxe7 {[%emt 0:00:15]} (24. Qh3 $16 Kf7 25. f4 Qxh3+ 26. Kxh3 exf4 27. Rae1 (27. gxf4 Nd5 $16)) 24... Kxe7 $14 {[%emt 0:00:04]} 25. Rab1 {[%emt 0:00:17]} Nc5 {[%emt 0:00:07] [#]} (25... Ra7 $11 {remains equal.}) 26. a5 {[%emt 0:01:21]} Bxa5 {[%emt 0:00:19]} (26... Rh6 $11) 27. f4 $16 {[%emt 0:00:01]} exf4 {[%emt 0:00:16]} (27... Bc7 $16 {was necessary.}) 28. Rxf4 $18 {[%emt 0:00:01]} ({Weaker is} 28. gxf4 Qg4 $14) 28... Bc7 $2 {[%emt 0:00:01]} (28... Rhf8) 29. Bf5 {[%emt 0:00:26]} Qf6 {[%emt 0:00:15]} 30. Rf3 {[%emt 0:00:09]} (30. Rbf1 $18 {and the rest is easy.} Ke8 31. R4f3 (31. Bd7+ Nxd7 32. Rxf6 Nxf6 $18) 31... Qxh4+ 32. Bh3) 30... Qxh4+ {[%emt 0:00:20]} (30... Rhf8 $16) 31. Kg1 {[%emt 0:00:02]} Qg5 {[%emt 0:00:01]} 32. Qf2 {[%emt 0:00:09] Threatens to win with Re1+.} Rh6 {[%emt 0:01:17]} 33. Re1+ {[%emt 0:00:09]} Kf8 {[%emt 0:00:03]} (33... Kf7 $18 34. Qxd4 Bxg3 35. Qxc5 Bf4+ (35... Bxe1+ $2 {perishes.} 36. Kf1 $18) 36. Kf1 Kg8) 34. Bg6+ {[%emt 0:00:01]} Kg8 {[%emt 0:00:10] [#]} 35. Rf8+ $3 {[%emt 0:00:00][%mdl 512]} Rxf8 {[%emt 0:00:03] [#]} 36. Qxf8+ $3 {[%emt 0:00:01][%mdl 512]} Kxf8 {[%emt 0:00:01]} 37. Re8# {[%emt 0:00:00] Weighted Error Value: White=0.30/Black=0.74.  Loses game:     	---       	Black=1      Missed win:     	White=1     	---        Mistake:       	White=2     	Black=5      Inaccurate:     	White=2     	Black=1      OK:         	White=5     	Black=9      Best:        	White=3     	Black=1} 1-0

[Event "CCT Julius Baer-D3 2024"]
[Site "Online"]
[Date "2024.09.27"]
[Round "2.4"]
[White "Makarian, Rudik"]
[Black "Theodorou, Nikolas"]
[Result "1/2-1/2"]
[ECO "B33"]
[WhiteElo "2550"]
[BlackElo "2619"]
[Annotator "TA"]
[PlyCount "98"]
[EventDate "2024.09.25"]
[EventType "swiss"]
[EventCountry "NET"]
[SourceTitle "playchess.com"]
[Source "ChessBase"]
[SourceQuality "1"]
[TimeControl "600+2"]

{[%evp 21,98,68,57,55,68,50,96,91,95,102,113,110,108,93,145,110,173,93,160,168,164,52,62,33,19,6,0,0,0,-46,-47,-72,-14,-61,-33,-43,-44,-46,-27,-122,-132,-138,-86,-90,-46,-72,-38,-98,-115,-138,-125,-117,0,-245,-230,-231,-241,-200,-238,-218,-175,-296,-36,-299,0,-218,-235,-235,-146,-142,-123,-123,-118,-118,0,0,0,-112,0]} 1. e4 {[%emt 0:00:02]} c5 {[%emt 0:00:05]} 2. Nf3 {[%emt 0:00:01][%cal Bg1f3,Bf3d4,Bd4b5,Bb5a3,Ba3c4][%mdl 32]} Nc6 {[%emt 0:00:00]} 3. d4 {[%emt 0:00:06]} cxd4 {[%emt 0:00:01]} 4. Nxd4 {[%emt 0:00:00]} e5 {[%emt 0:00:01]} 5. Nb5 {[%emt 0:00:03]} d6 {[%emt 0:00:00]} 6. N1c3 {[%emt 0:00:04]} a6 {[%emt 0:00:07]} 7. Na3 {[%emt 0:00:01]} Be7 {[%emt 0:00:01]} 8. Nc4 {[%emt 0:00:18]} Nf6 {[%emt 0:01:17]} 9. Bg5 {[%emt 0:00:27]} Nd4 {[%emt 0:00:29]} 10. Bxf6 {[%emt 0:00:26]} Bxf6 {[%emt 0:00:00]} 11. Nd5 {[%emt 0:00:01]} b5 {[%emt 0:00:27]} 12. Ncb6 {[%emt 0:00:10] Excellent horsemanship.} Rb8 {[%emt 0:00:05]} 13. Nxc8 {[%emt 0:00:01]} Rxc8 {[%emt 0:00:08]} (13... Qxc8 $14 14. c3 Ne6) 14. c3 $16 {[%emt 0:00:00] White is better.} Ne6 {[%emt 0:00:01]} 15. a4 {[%emt 0:00:06]} Rb8 {[%emt 0:00:07]} 16. axb5 {[%emt 0:00:15]} axb5 {[%emt 0:00:00]} 17. Ra6 {[%emt 0:01:05]} Bg5 {[%emt 0:01:07]} (17... Nc7 $142 18. Nxf6+ Qxf6 19. Rxd6 (19. Qxd6 $2 Nxa6 20. Qxf6 gxf6 $19) 19... Qf4) 18. Nb4 {[%emt 0:01:20][%cal Ob4c6] Nc6! would now be deadly.} Rb6 {[%emt 0:00:37] [#]} (18... Qc7 $16 {was called for.}) 19. h4 {[%emt 0:00:12]} Be7 {[%emt 0:00:10] Black is weak on the light squares} (19... Bf6 $142) 20. Ra7 {[%emt 0:00:28][%cal Of1b5] Threatens to win with Bxb5+!} Nc7 {[%emt 0:00:12][%cal Oe8g8]} 21. g3 {[%emt 0:00:25]} (21. Qa1 $18 {aiming for Qa5.} Qb8 22. Nd5) 21... O-O $1 $14 {[%emt 0:00:05]} 22. Bh3 {[%emt 0:00:10] White is much more active.} Qb8 {[%emt 0:00:01]} 23. Rxc7 {[%emt 0:00:32]} Qxc7 {[%emt 0:00:00]} 24. Nd5 {[%emt 0:00:01][%csl LRb6,LRc7]} Qb7 {[%emt 0:00:01]} 25. O-O {[%emt 0:00:20]} (25. Nxb6 $11 Qxb6 26. O-O) 25... Ra6 $15 {[%emt 0:00:12]} 26. h5 {[%emt 0:00:08]} Bd8 {[%emt 0:00:22]} (26... Rfa8 $17) 27. Kg2 {[%emt 0:00:03]} (27. h6 $11 {is more appropriate.} g6 28. Qd2) 27... Kh8 {[%emt 0:00:06]} 28. Bg4 {[%emt 0:00:36]} Ra2 {[%emt 0:00:39]} 29. Qb1 {[%emt 0:00:51]} Ra4 {[%emt 0:00:21][%cal Of7f5]} 30. b4 {[%emt 0:00:04] [#]} (30. Qd3 $11) 30... f5 $1 $17 {[%emt 0:00:55]} 31. Bf3 {[%emt 0:00:49]} (31. Bxf5 $2 Rxf5 32. exf5 Qxd5+ $19) (31. Bd1 Ra3) 31... fxe4 {[%emt 0:00:05]} (31... f4 $142 32. gxf4 exf4) 32. Bxe4 {[%emt 0:00:03]} Qf7 {[%emt 0:00:01] Inhibits Nf6.} 33. Qc2 {[%emt 0:00:29]} Bb6 {[%emt 0:00:20]} 34. f4 {[%emt 0:00:55]} (34. Nxb6 $2 Ra2 35. Bd5 Rxc2 $19) (34. Qe2 $15 Bd8 35. Qb2 (35. Qxb5 $2 Ra2 $17)) 34... Qa7 {[%emt 0:00:31]} 35. Qd3 {[%emt 0:00:05]} Ra2+ $1 {[%emt 0:00:02]} 36. Kh3 {[%emt 0:00:01]} exf4 {[%emt 0:00:35]} (36... Qd7+ $17 37. g4 Bf2) 37. Nxf4 $2 {[%emt 0:00:05]} (37. Rxf4 $11 {and White stays safe.} Rxf4 38. Nxf4 Qd7+ 39. Bf5) 37... Qd7+ $19 {[%emt 0:00:01]} 38. g4 {[%emt 0:00:05][%cal Of4g6]} Rf2 {[%emt 0:00:00]} 39. Rxf2 {[%emt 0:00:10]} Bxf2 {[%emt 0:00:01]} 40. Bf5 {[%emt 0:00:00]} Qc6 {[%emt 0:00:14]} 41. Kh2 {[%emt 0:00:10] Prevents Qh1+.} (41. Nd5 $142) 41... Be1 $2 {[%emt 0:00:37]} ({Better is} 41... d5 $19 {Strongly threatening ...Ba7.} 42. Kg2 Be1) 42. Ne6 $2 {[%emt 0:00:02][%mdl 8192]} (42. h6 $1 $15 Qxc3 43. Ne6) 42... Rf6 $2 {[%emt 0:00:16]} ({Black should try} 42... Ra8 $19 {( -> ...Ra2+)} 43. Be4 Ra2+ (43... Qxc3 $2 44. Qxc3 Bxc3 45. Bxa8 $18) 44. Kh3 Qxc3 45. Qxc3 Bxc3) 43. c4 $2 {[%emt 0:00:10]} (43. g5 $11 Rxe6 44. Bxe6 Bxc3 45. Qf5 (45. Bd5 Be5+ 46. Kg2 Qc1 $11)) 43... Qxc4 {[%emt 0:00:16]} (43... Bxb4 44. g5 bxc4 45. Qd4 Rxe6 (45... Rxf5 46. Qxg7#) (45... Bc5 46. gxf6 Bxd4 47. f7 $11) 46. Bxe6 $15) (43... bxc4 44. Qe3 $15) 44. Qxd6 {[%emt 0:00:04] Threatening mate with Qd8+.} Qe2+ {[%emt 0:00:01]} 45. Kh1 {[%emt 0:00:01]} Qf1+ {[%emt 0:00:02]} 46. Kh2 {[%emt 0:00:01] Intending Qb8+ and mate.} Qf2+ {[%emt 0:00:01]} 47. Kh1 {[%emt 0:00:01] [#] Qb8+ would kill now.} Qf1+ {[%emt 0:00:17]} (47... Qf3+ $1 $17 48. Kh2 Qa8) 48. Kh2 $11 {[%emt 0:00:01] White threatens Qb8+ and mate.} Qf2+ {[%emt 0:00:01]} (48... Rxf5 $11 49. gxf5 Qf2+ 50. Kh1 Qf1+ (50... Qxf5 51. Qd8+) (50... Qf3+ 51. Kh2 $11) 51. Kh2 Qe2+ (51... Qxf5 52. Qd8+) (51... Qf2+ 52. Kh1 $11) 52. Kh3 Qf3+ (52... Qxh5+ 53. Kg2 $11) 53. Kh2 Qf2+ (53... Qxf5 54. Qd8+) (53... Qxh5+ 54. Kg1 $14) 54. Kh1 Qf3+ (54... Qxf5 55. Qd8+) 55. Kg1 Qf2+ (55... Qxh5 56. Qf8#) 56. Kh1) 49. Kh1 $17 {[%emt 0:00:03] [#] White wants to mate with Qb8+. Dancing on a razor blade.} Qf1+ {[%emt 0:00:01] Never resign too early!   Weighted Error Value: White=0.49/Black=0.44.  Loses game:     	White=3     	---        Missed win:     	---       	Black=2      Mistake:       	White=7     	Black=10     Inaccurate:     	White=2     	Black=4      OK:         	White=10    	Black=11     Best:        	White=5     	Black=4      Strong:       	---       	Black=2} ({Black should play} 49... Qf3+ $1 $17 50. Kh2 Qa8) 1/2-1/2